fUSD/lending_fUSD_20250413
["ID","MTS","AMOUNT","RATE_DAILY","PERIOD"]
[357891849,1744516242161,-160.85871336,0.000199,2]
[357891851,1744516242170,-256.61492667,0.000199,2]
[357891853,1744516242180,-2046.0,0.00019918,2]
[357891855,1744516242189,-1287.0,0.00019918,2]
[357891857,1744516242199,-1327.0,0.00019918,2]
[357891859,1744516242208,-791.0,0.00019918,2]
[357891861,1744516242217,-907.0,0.00019918,2]
[357891863,1744516242227,-1438.0,0.00019918,2]
[357891865,1744516242236,-545.0,0.00019918,2]
[357891867,1744516242245,-575.0,0.00019918,2]
[357891869,1744516242254,-4147.0,0.00019918,2]
[357891871,1744516242265,-152.0,0.00019918,2]
[357891873,1744516242274,-150.0,0.00019918,2]
[357891875,1744516242283,-698.0,0.00019918,2]
[357891877,1744516242293,-3963.0,0.00019918,2]
[357891879,1744516242303,-500.0,0.00019973,2]
[357891881,1744516242312,-152.13350281,0.00019973,2]
[357891883,1744516242321,-11892.56029446,0.00019986,2]
[357891885,1744516242345,-9411.70177327,0.00019986,2]
[357891886,1744516242356,-1271.50125224,0.00019986,2]
[357891887,1744516242366,-4726.16,0.00019986,2]
[357891889,1744516242381,-529.600006,0.00019986,2]
[357891890,1744516242393,-1073.91990198,0.00019986,2]
[357891891,1744516242405,-22632.82215985,0.00019986,2]
[357891892,1744516242414,-2950.7614994,0.00019986,2]
[357891893,1744516242424,-11097.7080941,0.00019986,2]
[357891894,1744516242433,-1189.0,0.0002,2]
[357891895,1744516242443,-31864.98315283,0.0002,2]
[357891896,1744516242452,-519.35359288,0.0002,2]
[357891897,1744516242461,-1090110.33745974,0.0002,2]
[357891908,1744516244213,-680.0257078,0.0002,2]
[357891909,1744516244225,-258.548626,0.0002,2]
[357891910,1744516244236,-470.22629265,0.0002,2]
[357891911,1744516244248,-518.97920254,0.0002,2]
[357891912,1744516244261,-143850.9001317,0.0002,2]
[357891913,1744516244273,-8542.8,0.0002,2]
[357891916,1744516245800,-268.987887,0.00019918,2]
[357891917,1744516245811,-318.8803487,0.00019918,2]
[357891918,1744516245854,-534.1317643,0.00019918,2]
[357891919,1744516245863,-3943.05961319,0.0002,2]
[357891920,1744516246019,-384.16329,0.0002,2]
[357891923,1744516327465,202.15742267,0.00019999,5]
[357891924,1744516327579,1224.02695294,0.00019999,5]
[357891925,1744516327640,1224.02695294,0.00019999,5]
[357891928,1744516821676,177.707867,0.0003,30]
[357891929,1744516823135,151.612995,0.0002,5]
[357891930,1744516824164,177.707867,0.0002,5]
[357891931,1744516824441,177.707867,0.00019999,5]
[357891932,1744516824757,177.707867,0.00019998,5]
[357891933,1744516825052,177.707867,0.00019998,5]
[357891934,1744516825504,177.707867,0.00019997,5]
[357891935,1744516826983,177.707867,0.0003,31]
[357891936,1744516829095,177.707867,0.0002,4]
[357891937,1744516829398,177.707867,0.0002,3]
[357891938,1744516829681,177.707867,0.00019998,3]
[357891939,1744516830000,177.707867,0.00019995,3]
[357891940,1744516830299,177.707867,0.00019992,3]
[357891941,1744516830654,177.707867,0.0001999,3]
[357891943,1744517073534,1540.0,0.00019463,7]
[357891946,1744517138623,1000.0,0.00019,10]
[357891949,1744517211701,283.36916594,0.00016872,2]
[357891950,1744517211724,533.81083406,0.00016872,2]
[357891962,1744517431975,-180.32,0.00018757,2]
[357891963,1744517431985,-250.0,0.00019,2]
[357891964,1744517431995,-569.77,0.00019135,2]
[357891965,1744517432006,-247.41,0.00019135,2]
[357891966,1744517432017,-449.59991995,0.00019178,2]
[357891967,1744517432046,-50.40008005,0.00019178,2]
[357891968,1744517432059,-598.87200638,0.00019178,2]
[357891969,1744517432069,-43.28064277,0.00019178,2]
[357891970,1744517432082,-456.71935723,0.00019178,2]
[357891971,1744517432092,-500.0,0.00019178,2]
[357891972,1744517432101,-500.0,0.00019178,2]
[357891973,1744517432111,-500.0,0.00019178,2]
[357891974,1744517432121,-500.0,0.00019178,2]
[357891975,1744517432136,-500.0,0.00019178,2]
[357891976,1744517432146,-500.0,0.00019178,2]
[357891977,1744517432156,-500.0,0.00019178,2]
[357891978,1744517432166,-500.0,0.00019178,2]
[357891979,1744517432176,-500.0,0.00019178,2]
[357891980,1744517432186,-500.0,0.00019178,2]
[357891981,1744517432196,-500.0,0.00019178,2]
[357891982,1744517432215,-150.0,0.00019178,2]
[357891983,1744517432225,-430.0,0.00019178,2]
[357891984,1744517432236,-500.0,0.00019178,2]
[357891985,1744517432245,-500.0,0.00019178,2]
[357891986,1744517432255,-500.0,0.00019178,2]
[357891987,1744517432264,-196.50564343,0.00019178,2]
[357891988,1744517432276,-303.49435657,0.00019178,2]
[357891989,1744517432290,-500.0,0.00019178,2]
[357891990,1744517432305,-500.0,0.00019178,2]
[357891991,1744517432315,-500.0,0.00019178,2]
[357891992,1744517432325,-500.0,0.00019178,2]
[357891993,1744517432334,-500.0,0.00019178,2]
[357891994,1744517432344,-500.0,0.00019178,2]
[357891995,1744517432353,-500.0,0.00019178,2]
[357891996,1744517432362,-500.0,0.00019178,2]
[357891997,1744517432372,-500.0,0.00019178,2]
[357891998,1744517432381,-500.0,0.00019178,2]
[357891999,1744517432390,-500.0,0.00019178,2]
[357892000,1744517432403,-500.0,0.00019178,2]
[357892001,1744517432412,-167.40227285,0.00019178,2]
[357892002,1744517432431,-332.59772715,0.00019178,2]
[357892003,1744517432440,-500.0,0.00019178,2]
[357892004,1744517432450,-500.0,0.00019178,2]
[357892005,1744517432459,-500.0,0.00019178,2]
[357892006,1744517432469,-500.0,0.00019178,2]
[357892007,1744517432479,-500.0,0.00019178,2]
[357892008,1744517432488,-500.0,0.00019178,2]
[357892009,1744517432497,-500.0,0.00019178,2]
[357892010,1744517432507,-601.8,0.00019178,2]
[357892011,1744517432516,-500.0,0.00019178,2]
[357892012,1744517432525,-561.49456136,0.00019178,2]
[357892013,1744517432535,-500.0,0.00019178,2]
[357892014,1744517432544,-500.0,0.00019178,2]
[357892015,1744517432554,-21892.68,0.00019178,2]
[357892016,1744517432564,-500.0,0.00019178,2]
[357892017,1744517432573,-1013.26,0.00019178,2]
[357892018,1744517432583,-500.0,0.00019178,2]
[357892019,1744517432593,-500.0,0.00019178,2]
[357892020,1744517432603,-1130.54,0.00019178,2]
[357892021,1744517432612,-500.0,0.00019178,2]
[357892022,1744517432622,-575.87,0.00019178,2]
[357892023,1744517432631,-500.0,0.00019178,2]
[357892024,1744517432640,-500.0,0.00019178,2]
[357892025,1744517432649,-500.0,0.00019178,2]
[357892026,1744517432659,-500.0,0.00019178,2]
[357892027,1744517432668,-500.0,0.00019178,2]
[357892028,1744517432677,-2037.45,0.00019178,2]
[357892029,1744517432687,-950.24,0.00019178,2]
[357892030,1744517432696,-892.99,0.00019178,2]
[357892031,1744517432706,-500.0,0.00019178,2]
[357892032,1744517432715,-500.0,0.00019178,2]
[357892033,1744517432725,-500.0,0.00019178,2]
[357892034,1744517432734,-500.0,0.00019178,2]
[357892035,1744517432743,-500.0,0.00019178,2]
[357892036,1744517432753,-500.0,0.00019178,2]
[357892037,1744517432762,-500.0,0.00019178,2]
[357892038,1744517432771,-500.0,0.00019178,2]
[357892039,1744517432780,-500.0,0.00019178,2]
[357892040,1744517432790,-663.01,0.00019178,2]
[357892041,1744517432799,-500.0,0.00019178,2]
[357892043,1744517432808,-500.0,0.00019178,2]
[357892044,1744517432817,-500.0,0.00019178,2]
[357892046,1744517432826,-2463.76,0.00019178,2]
[357892048,1744517432835,-500.0,0.00019178,2]
[357892050,1744517432844,-500.0,0.00019178,2]
[357892052,1744517432854,-3113.35,0.00019178,2]
[357892054,1744517432863,-500.0,0.00019178,2]
[357892056,1744517432872,-500.0,0.00019178,2]
[357892058,1744517432881,-500.0,0.00019178,2]
[357892060,1744517432891,-500.0,0.00019178,2]
[357892062,1744517432900,-550.66,0.00019178,2]
[357892064,1744517432908,-1000.0,0.00019207,2]
[357892065,1744517432919,-150.0,0.00019233,2]
[357892067,1744517432929,-430.0,0.00019233,2]
[357892069,1744517432938,-430.24,0.00019233,2]
[357892071,1744517432948,-200.0,0.00019288,2]
[357892073,1744517432957,-430.0,0.00019288,2]
[357892075,1744517432966,-430.0,0.00019342,2]
[357892077,1744517432975,-5349.8311,0.00019352,2]
[357892079,1744517432986,-2673.8235,0.00019352,2]
[357892081,1744517432995,-1303.2608,0.00019352,2]
[357892083,1744517433004,-1360.1493,0.00019352,2]
[357892085,1744517433013,-430.0,0.00019397,2]
[357892087,1744517433022,-357.7147554,0.00019399,2]
[357892089,1744517433031,-430.0,0.00019452,2]
[357892091,1744517433041,-583.99457689,0.00019452,2]
[357892093,1744517433050,-500.0,0.00019452,2]
[357892095,1744517433059,-500.0,0.00019452,2]
[357892096,1744517433068,-500.0,0.00019452,2]
[357892098,1744517433077,-500.0,0.00019452,2]
[357892100,1744517433087,-500.0,0.00019452,2]
[357892102,1744517433096,-412.11418316,0.00019452,2]
[357892104,1744517433105,-500.0,0.00019452,2]
[357892106,1744517433116,-500.0,0.00019452,2]
[357892108,1744517433127,-500.0,0.00019452,2]
[357892110,1744517433138,-500.0,0.00019452,2]
[357892112,1744517433148,-495.08,0.00019452,2]
[357892114,1744517433158,-500.0,0.00019452,2]
[357892116,1744517433168,-500.0,0.00019452,2]
[357892118,1744517433178,-500.0,0.00019452,2]
[357892120,1744517433188,-500.0,0.00019452,2]
[357892122,1744517433197,-500.0,0.00019452,2]
[357892124,1744517433208,-500.0,0.00019452,2]
[357892126,1744517433218,-500.0,0.00019452,2]
[357892128,1744517433228,-500.0,0.00019452,2]
[357892130,1744517433237,-500.0,0.00019452,2]
[357892132,1744517433247,-500.0,0.00019452,2]
[357892134,1744517433257,-500.0,0.00019452,2]
[357892135,1744517433266,-500.0,0.00019452,2]
[357892137,1744517433275,-225.38296261,0.00019452,2]
[357892139,1744517433285,-500.0,0.00019452,2]
[357892140,1744517433294,-601.8,0.00019452,2]
[357892141,1744517433303,-500.0,0.00019452,2]
[357892143,1744517433312,-500.0,0.00019452,2]
[357892145,1744517433322,-21892.68,0.00019452,2]
[357892146,1744517433331,-500.0,0.00019452,2]
[357892148,1744517433341,-1013.26,0.00019452,2]
[357892149,1744517433350,-500.0,0.00019452,2]
[357892151,1744517433360,-500.0,0.00019452,2]
[357892152,1744517433370,-1130.54,0.00019452,2]
[357892154,1744517433380,-500.0,0.00019452,2]
[357892155,1744517433390,-575.87,0.00019452,2]
[357892157,1744517433399,-500.0,0.00019452,2]
[357892158,1744517433409,-456.23552071,0.00019452,2]
[357892160,1744517433419,-500.0,0.00019452,2]
[357892161,1744517433428,-500.0,0.00019452,2]
[357892162,1744517433437,-500.0,0.00019452,2]
[357892163,1744517433447,-2037.45,0.00019452,2]
[357892165,1744517433456,-950.24,0.00019452,2]
[357892166,1744517433466,-892.99,0.00019452,2]
[357892167,1744517433476,-500.0,0.00019452,2]
[357892169,1744517433486,-500.0,0.00019452,2]
[357892170,1744517433495,-500.0,0.00019452,2]
[357892171,1744517433505,-500.0,0.00019452,2]
[357892173,1744517433514,-500.0,0.00019452,2]
[357892174,1744517433524,-500.0,0.00019452,2]
[357892176,1744517433534,-500.0,0.00019452,2]
[357892178,1744517433545,-500.0,0.00019452,2]
[357892179,1744517433554,-500.0,0.00019452,2]
[357892180,1744517433564,-663.01,0.00019452,2]
[357892181,1744517433573,-500.0,0.00019452,2]
[357892182,1744517433583,-500.0,0.00019452,2]
[357892183,1744517433592,-516.31815688,0.00019452,2]
[357892184,1744517433602,-2463.76,0.00019452,2]
[357892185,1744517433612,-500.0,0.00019452,2]
[357892186,1744517433622,-500.0,0.00019452,2]
[357892187,1744517433631,-3113.35,0.00019452,2]
[357892188,1744517433640,-411.82608849,0.00019452,2]
[357892189,1744517433650,-500.0,0.00019452,2]
[357892190,1744517433660,-500.0,0.00019452,2]
[357892191,1744517433670,-500.0,0.00019452,2]
[357892192,1744517433679,-550.66,0.00019452,2]
[357892193,1744517433689,-430.0,0.00019507,2]
[357892194,1744517433700,-430.0,0.00019562,2]
[357892195,1744517433712,-415.0,0.00019589,2]
[357892196,1744517433721,-3963.0,0.00019605,2]
[357892197,1744517433731,-698.0,0.00019605,2]
[357892198,1744517433741,-152.0,0.00019605,2]
[357892199,1744517433750,-1122.0,0.00019605,2]
[357892200,1744517433760,-430.0,0.00019616,2]
[357892201,1744517433770,-430.0,0.00019671,2]
[357892202,1744517433779,-430.0,0.00019726,2]
[357892203,1744517433788,-500.0,0.00019726,2]
[357892204,1744517433798,-560.50787785,0.00019726,2]
[357892205,1744517433808,-500.0,0.00019726,2]
[357892206,1744517433817,-500.0,0.00019726,2]
[357892207,1744517433826,-500.0,0.00019726,2]
[357892208,1744517433836,-500.0,0.00019726,2]
[357892209,1744517433845,-500.0,0.00019726,2]
[357892210,1744517433856,-500.0,0.00019726,2]
[357892211,1744517433865,-500.0,0.00019726,2]
[357892212,1744517433876,-500.0,0.00019726,2]
[357892213,1744517433886,-500.0,0.00019726,2]
[357892214,1744517433896,-500.0,0.00019726,2]
[357892215,1744517433906,-500.0,0.00019726,2]
[357892216,1744517433915,-500.0,0.00019726,2]
[357892217,1744517433925,-500.0,0.00019726,2]
[357892218,1744517433934,-500.0,0.00019726,2]
[357892219,1744517433943,-500.0,0.00019726,2]
[357892220,1744517433952,-500.0,0.00019726,2]
[357892221,1744517433962,-500.0,0.00019726,2]
[357892222,1744517433971,-500.0,0.00019726,2]
[357892223,1744517433980,-500.0,0.00019726,2]
[357892224,1744517433991,-500.0,0.00019726,2]
[357892225,1744517434001,-601.8,0.00019726,2]
[357892226,1744517434010,-500.0,0.00019726,2]
[357892227,1744517434020,-500.0,0.00019726,2]
[357892228,1744517434029,-21892.68,0.00019726,2]
[357892229,1744517434038,-500.0,0.00019726,2]
[357892230,1744517434047,-1013.26,0.00019726,2]
[357892231,1744517434061,-500.0,0.00019726,2]
[357892232,1744517434071,-500.0,0.00019726,2]
[357892233,1744517434081,-1130.54,0.00019726,2]
[357892234,1744517434090,-500.0,0.00019726,2]
[357892235,1744517434100,-575.87,0.00019726,2]
[357892236,1744517434109,-500.0,0.00019726,2]
[357892237,1744517434120,-500.0,0.00019726,2]
[357892238,1744517434132,-500.0,0.00019726,2]
[357892239,1744517434142,-500.0,0.00019726,2]
[357892240,1744517434151,-2037.45,0.00019726,2]
[357892241,1744517434162,-950.24,0.00019726,2]
[357892242,1744517434171,-892.99,0.00019726,2]
[357892243,1744517434180,-500.0,0.00019726,2]
[357892244,1744517434190,-500.0,0.00019726,2]
[357892245,1744517434199,-500.0,0.00019726,2]
[357892246,1744517434209,-500.0,0.00019726,2]
[357892247,1744517434219,-500.0,0.00019726,2]
[357892248,1744517434229,-500.0,0.00019726,2]
[357892249,1744517434238,-500.0,0.00019726,2]
[357892250,1744517434247,-500.0,0.00019726,2]
[357892251,1744517434257,-500.0,0.00019726,2]
[357892252,1744517434267,-663.01,0.00019726,2]
[357892253,1744517434276,-500.0,0.00019726,2]
[357892254,1744517434285,-500.0,0.00019726,2]
[357892255,1744517434295,-2463.76,0.00019726,2]
[357892256,1744517434305,-500.0,0.00019726,2]
[357892257,1744517434315,-500.0,0.00019726,2]
[357892258,1744517434326,-3113.35,0.00019726,2]
[357892259,1744517434335,-500.0,0.00019726,2]
[357892260,1744517434345,-500.0,0.00019726,2]
[357892261,1744517434354,-500.0,0.00019726,2]
[357892262,1744517434363,-550.66,0.00019726,2]
[357892263,1744517434373,-430.0,0.00019781,2]
[357892264,1744517434382,-2500.0,0.000198,2]
[357892265,1744517434391,-430.0,0.00019836,2]
[357892266,1744517434401,-430.0,0.0001989,2]
[357892267,1744517434410,-908.483,0.000199,2]
[357892268,1744517434420,-150.0,0.00019918,2]
[357892269,1744517434430,-150.208,0.00019918,2]
[357892270,1744517434439,-150.412,0.00019918,2]
[357892271,1744517434448,-241.931,0.00019918,2]
[357892272,1744517434458,-250.0,0.00019918,2]
[357892273,1744517434467,-181.914,0.00019918,2]
[357892274,1744517434477,-156.43,0.00019918,2]
[357892275,1744517434487,-172.182,0.00019918,2]
[357892276,1744517434496,-257.823,0.00019918,2]
[357892277,1744517434506,-1327.0,0.00019918,2]
[357892278,1744517434516,-582.76,0.00019918,2]
[357892279,1744517434525,-1287.0,0.00019918,2]
[357892280,1744517434535,-791.0,0.00019918,2]
[357892281,1744517434544,-167.889,0.00019918,2]
[357892282,1744517434554,-409.861,0.00019918,2]
[357892283,1744517434563,-907.0,0.00019918,2]
[357892284,1744517434572,-575.0,0.00019918,2]
[357892285,1744517434582,-4147.0,0.00019918,2]
[357892286,1744517434591,-430.0,0.00019945,2]
[357892287,1744517434601,-3581.9953842,0.00019986,2]
[357892288,1744517434611,-1324.0389635,0.00019986,2]
[357892289,1744517434620,-19160.4053302,0.00019986,2]
[357892290,1744517434630,-4131.1409223,0.00019986,2]
[357892291,1744517434640,-2891.0121138,0.00019986,2]
[357892292,1744517434649,-449.5976938,0.00019986,2]
[357892293,1744517434659,-1000.8246,0.00019999,2]
[357892294,1744517434668,-1088.0,0.0002,2]
[357892295,1744517434677,-32658.93315283,0.0002,2]
[357892296,1744517434687,-430.0,0.0002,2]
[357892297,1744517434697,-27198.01749795,0.0002,2]
[357892298,1744517434712,-219993.81530825,0.0002,2]
[357892299,1744517434723,-553.0562046,0.0002,2]
[357892302,1744517438067,-329.62142676,0.00019178,2]
[357892303,1744517438076,-519.35359288,0.0002,2]
[357892304,1744517438086,-23693.41524934,0.0002,2]
[357892305,1744517438123,-458.84855654,0.0002,2]
[357892306,1744517438138,-663.85289851,0.0002,2]
[357892307,1744517438180,-1003.86398865,0.0002,2]
[357892308,1744517438290,-791.29049999,0.0002,2]
[357892309,1744517438302,-740.75,0.0002,2]
[357892315,1744517440203,-293.22318818,0.0002,2]
[357892316,1744517440311,-785.77681182,0.0002,2]
[357892317,1744517440321,-738.28702589,0.0002,2]
[357892318,1744517440366,-753.98892624,0.0002,2]
[357892319,1744517440377,-992.07530946,0.0002,2]
[357892320,1744517440634,-888958.27160548,0.0002,2]
[357892321,1744517440644,-609.31186946,0.0002,2]
[357892322,1744517440655,-248164.56032401,0.0002,2]
[357892340,1744517446242,-21734.68958703,0.0002,2]
[357892342,1744517523311,191.447935,0.0003,30]
[357892343,1744517526928,191.447935,0.0002,4]
[357892344,1744517527224,191.447935,0.0003,31]
[357892345,1744517527503,191.447935,0.0003,31]
[357892346,1744517527799,191.447935,0.0003,31]
[357892347,1744517528103,191.447935,0.0003,31]
[357892348,1744517528395,191.447935,0.0003,31]
[357892349,1744517528688,191.447935,0.0002,3]
[357892350,1744517529001,191.447935,0.00019998,3]
[357892351,1744517529308,191.447935,0.00019995,3]
[357892352,1744517529625,191.447935,0.00019992,3]
[357892353,1744517529945,191.447935,0.0001999,3]
[357892354,1744517530243,191.447935,0.0002,5]
[357892355,1744517530961,191.447935,0.00019999,5]
[357892356,1744517531279,191.447935,0.00019998,5]
[357892357,1744517531576,191.447935,0.00019998,5]
[357892358,1744517531876,191.447935,0.00019997,5]
[357892363,1744517923569,460.0,0.0003,30]
[357892364,1744518220952,283.36916594,0.00017082,2]
[357892365,1744518220977,452.09083406,0.00017082,2]
[357892374,1744518310591,664.28843312,0.000154,2]
[357892375,1744518328568,326.57137113,0.00011,2]
[357892376,1744518337150,1665.24409137,9e-05,2]
[357892377,1744518356217,1389.33703519,6.94e-05,2]
[357892379,1744518429729,1677.62456026,0.00015,2]
[357892380,1744518440558,250.53929417,0.000101,2]
[357892381,1744518447851,321.28308662,0.0001,2]
[357892383,1744518476791,309.73961761,0.0001,2]
[357892405,1744518632041,-167.53,0.00018742,2]
[357892408,1744518632051,-215.12,0.00018883,2]
[357892410,1744518632061,-475.79028291,0.00019,2]
[357892414,1744518632151,-165.46971709,0.00019,2]
[357892415,1744518632161,-641.26,0.00019,2]
[357892416,1744518632171,-641.26,0.00019,2]
[357892417,1744518632181,-641.26,0.00019,2]
[357892418,1744518632194,-641.26,0.00019,2]
[357892419,1744518632204,-250.0,0.00019,2]
[357892420,1744518632213,-1006.40667186,0.00019176,2]
[357892421,1744518632224,-1016.81506899,0.00019177,2]
[357892422,1744518632237,-21822.37454988,0.00019177,2]
[357892423,1744518632248,-11020.0384356,0.00019177,2]
[357892424,1744518632267,-15926.42595723,0.00019177,2]
[357892425,1744518632277,-5923.7493156,0.00019177,2]
[357892426,1744518632286,-500.0,0.00019178,2]
[357892427,1744518632295,-545.76524409,0.00019178,2]
[357892428,1744518632304,-500.0,0.00019178,2]
[357892429,1744518632313,-551.32152198,0.00019178,2]
[357892430,1744518632322,-500.0,0.00019178,2]
[357892431,1744518632331,-500.0,0.00019178,2]
[357892432,1744518632341,-500.0,0.00019178,2]
[357892433,1744518632351,-500.0,0.00019178,2]
[357892434,1744518632360,-500.0,0.00019178,2]
[357892435,1744518632369,-500.0,0.00019178,2]
[357892436,1744518632378,-500.0,0.00019178,2]
[357892437,1744518632388,-500.0,0.00019178,2]
[357892438,1744518632397,-500.0,0.00019178,2]
[357892439,1744518632406,-500.0,0.00019178,2]
[357892440,1744518632415,-500.0,0.00019178,2]
[357892441,1744518632425,-500.0,0.00019178,2]
[357892442,1744518632434,-500.0,0.00019178,2]
[357892444,1744518632443,-500.0,0.00019178,2]
[357892446,1744518632452,-500.0,0.00019178,2]
[357892448,1744518632462,-500.0,0.00019178,2]
[357892450,1744518632471,-500.0,0.00019178,2]
[357892452,1744518632480,-500.0,0.00019178,2]
[357892454,1744518632490,-500.0,0.00019178,2]
[357892456,1744518632499,-526.57,0.00019178,2]
[357892458,1744518632508,-633.15133177,0.00019178,2]
[357892460,1744518632517,-886.61,0.00019178,2]
[357892462,1744518632526,-500.0,0.00019178,2]
[357892464,1744518632535,-500.0,0.00019178,2]
[357892466,1744518632544,-503.88,0.00019178,2]
[357892468,1744518632554,-3552.85693939,0.00019178,2]
[357892470,1744518632568,-308.79,0.00019178,2]
[357892472,1744518632581,-1716.35675238,0.00019178,2]
[357892485,1744518638127,-2725.70112761,0.00019178,2]
[357892486,1744518638139,-265.71883021,0.00019178,2]
[357892487,1744518638150,-1428.45706008,0.00019178,2]
[357892488,1744518638183,-3774.53643325,0.00019178,2]
[357892489,1744518638295,-5383.67285708,0.00019178,2]
[357892490,1744518638304,-500.0,0.00019178,2]
[357892491,1744518638313,-500.0,0.00019178,2]
[357892492,1744518638323,-683.69,0.00019178,2]
[357892493,1744518638333,-1782.77,0.00019178,2]
[357892494,1744518638342,-233.44008805,0.00019178,2]
[357892495,1744518638351,-500.0,0.00019178,2]
[357892496,1744518638360,-560.56842338,0.00019178,2]
[357892497,1744518638369,-500.0,0.00019178,2]
[357892498,1744518638378,-500.0,0.00019178,2]
[357892499,1744518638387,-580.13,0.00019178,2]
[357892500,1744518638396,-500.0,0.00019178,2]
[357892501,1744518638405,-500.0,0.00019178,2]
[357892502,1744518638414,-500.0,0.00019178,2]
[357892503,1744518638423,-500.0,0.00019178,2]
[357892504,1744518638432,-500.0,0.00019178,2]
[357892505,1744518638441,-500.0,0.00019178,2]
[357892506,1744518638450,-500.0,0.00019178,2]
[357892507,1744518638460,-500.0,0.00019178,2]
[357892509,1744518638469,-500.0,0.00019178,2]
[357892510,1744518638478,-500.0,0.00019178,2]
[357892511,1744518638488,-2155.79,0.00019178,2]
[357892512,1744518638497,-500.0,0.00019178,2]
[357892513,1744518638506,-2724.18,0.00019178,2]
[357892514,1744518638515,-500.0,0.00019178,2]
[357892515,1744518638524,-500.0,0.00019178,2]
[357892517,1744518638533,-612.11,0.00019178,2]
[357892519,1744518638542,-500.0,0.00019178,2]
[357892521,1744518638553,-514.81,0.00019178,2]
[357892522,1744518638563,-500.0,0.00019178,2]
[357892523,1744518638575,-317.63557233,0.00019178,2]
[357892524,1744518638589,-11.98585443,0.00019178,2]
[357892525,1744518638598,-460.57512957,0.00019233,2]
[357892526,1744518638610,-39.42487043,0.00019233,2]
[357892527,1744518638619,-266.50832069,0.00019288,2]
[357892533,1744518640366,-233.49167931,0.00019288,2]
[357892534,1744518640376,-493.91315708,0.00019307,2]
[357892535,1744518640387,-3116.23684292,0.00019307,2]
[357892536,1744518640396,-1000.0,0.00019312,2]
[357892537,1744518640405,-500.0,0.00019342,2]
[357892538,1744518640415,-735.46,0.00019346,2]
[357892539,1744518640424,-500.0,0.00019397,2]
[357892540,1744518640433,-268.2860665,0.00019399,2]
[357892541,1744518640442,-500.0,0.00019452,2]
[357892542,1744518640451,-500.0,0.00019452,2]
[357892543,1744518640461,-500.0,0.00019452,2]
[357892544,1744518640470,-500.0,0.00019452,2]
[357892545,1744518640479,-500.0,0.00019452,2]
[357892546,1744518640488,-500.0,0.00019452,2]
[357892547,1744518640497,-500.0,0.00019452,2]
[357892548,1744518640508,-500.0,0.00019452,2]
[357892549,1744518640516,-500.0,0.00019452,2]
[357892550,1744518640526,-500.0,0.00019452,2]
[357892551,1744518640535,-500.0,0.00019452,2]
[357892552,1744518640544,-500.0,0.00019452,2]
[357892553,1744518640553,-500.0,0.00019452,2]
[357892554,1744518640562,-153.0004918,0.00019452,2]
[357892555,1744518640575,-500.0,0.00019452,2]
[357892556,1744518640584,-500.0,0.00019452,2]
[357892557,1744518640593,-500.0,0.00019452,2]
[357892558,1744518640603,-500.0,0.00019452,2]
[357892559,1744518640611,-500.0,0.00019452,2]
[357892560,1744518640620,-500.0,0.00019452,2]